bitfinex-derivatives/quotes_SOLF0:USTF0_20250411
["timestamp","ask_amount","ask_price","bid_price","bid_amount"]
[1744350054781,0.05718366,115.75,115.74,6.99886744]
[1744350054980,0.05718366,115.75,115.74,15.64556744]
[1744350058389,36.1264599,115.79,115.76,8.6447]
[1744350058679,36.1264599,115.79,115.75,6.99886744]
[1744350058883,43.12532734,115.79,115.74,6.99886744]
[1744350059086,8.6443,115.78,115.75,8.6459]
[1744350059586,8.70000005,115.78,115.75,8.7053874]
[1744350060284,8.6447,115.77,115.75,0.0594874]
[1744350060889,6.99886744,115.76,115.69,34.8203]
[1744350061090,6.99886744,115.76,115.71,6.99886744]
[1744350061388,8.6472,115.74,115.7,15.64826744]
[1744350061589,8.6472,115.74,115.7,6.99886744]
[1744350061890,8.6472,115.74,115.71,15.64746744]
[1744350062184,0.05968617,115.73,115.71,15.70703324]
[1744350062594,0.05968617,115.73,115.71,8.7081658]
[1744350063502,0.05968617,115.73,115.71,0.0595658]
[1744350067707,8.6482,115.72,115.71,0.0595658]
[1744350068405,8.70748617,115.73,115.71,0.0595658]
[1744350069106,8.6482,115.72,115.71,0.0595658]
[1744350070100,8.70758617,115.73,115.71,0.0595658]
[1744350070306,0.05968617,115.73,115.71,7.05843324]
[1744350070598,8.6482,115.72,115.71,0.0595658]
[1744350071000,6.99886744,115.72,115.66,6.99886744]
[1744350071307,8.6509,115.69,115.66,15.65126744]
[1744350071602,8.6509,115.69,115.65,9.31406744]
[1744350072004,8.6509,115.69,115.66,6.99886744]
[1744350072202,0.06496335,115.68,115.66,7.06264254]
[1744350073004,0.06496335,115.68,115.67,6.99886744]
[1744350074107,0.06496335,115.68,115.67,15.65086744]
[1744350074304,0.06496335,115.68,115.67,6.99886744]
[1744350074803,0.06496335,115.68,115.66,15.71504254]
[1744350075801,0.06496335,115.68,115.66,7.06264254]
[1744350076103,0.06496335,115.68,115.66,0.0637751]
[1744350076805,0.06496335,115.68,115.66,15.71534254]
[1744350078207,8.71626335,115.68,115.66,0.0637751]
[1744350079209,41.192,115.67,115.66,0.0637751]
[1744350080210,48.19086744,115.67,115.66,0.0637751]
[1744350080711,41.192,115.67,115.66,0.0637751]
[1744350084315,8.654,115.65,115.61,4.4197]
[1744350084711,8.654,115.65,115.62,8.6556]
[1744350085416,8.71344364,115.65,115.62,8.71640788]
[1744350085916,0.05944364,115.65,115.63,8.6544]
[1744350086117,0.05944364,115.65,115.62,10.95301819]
[1744350086414,0.05944364,115.65,115.63,9.02410574]
[1744350087207,0.05944364,115.65,115.62,10.95301819]
[1744350088207,0.05944364,115.65,115.62,0.06080788]
[1744350088513,8.71364364,115.65,115.62,8.71610788]
[1744350088714,0.05944364,115.65,115.62,0.06080788]
[1744350088911,32.54,115.64,115.62,0.06080788]
[1744350089418,8.655,115.63,115.62,0.06080788]
[1744350092814,8.6572,115.6,115.58,2.2088]
[1744350093019,39.067,115.64,115.56,10.89221031]
[1744350093319,32.54,115.64,115.58,10.89221031]
[1744350093715,8.6551,115.63,115.6,8.6569]
[1744350093913,8.6551,115.63,115.58,10.89221031]
[1744350094114,8.71022417,115.63,115.6,0.06157078]
[1744350094322,8.71022417,115.63,115.6,8.71807078]
[1744350094619,0.05512417,115.63,115.6,0.06157078]
[1744350095020,0.05512417,115.63,115.61,8.6565]
[1744350096424,0.05512417,115.63,115.62,8.6557]
[1744350097421,0.05512417,115.63,115.6,13.21998109]
[1744350097821,0.05512417,115.63,115.61,8.6559]
[1744350098021,0.05512417,115.63,115.6,13.21998109]
[1744350100426,0.05512417,115.63,115.61,9.00424816]
[1744350101326,0.05512417,115.63,115.62,8.6557]
[1744350103235,0.05512417,115.63,115.62,15.62932256]
[1744350104022,0.05512417,115.63,115.6,0.06157078]
[1744350104829,8.71022417,115.63,115.6,8.71827078]
[1744350106430,8.71022417,115.63,115.6,15.69189334]
[1744350107625,8.71022417,115.63,115.61,8.6565]
[1744350107832,8.71022417,115.63,115.6,7.03519334]
[1744350108133,8.71022417,115.63,115.6,15.69209334]
[1744350112640,8.71022417,115.63,115.6,8.71847078]
[1744350113033,6.97362256,115.62,115.6,0.06157078]
[1744350113231,39.51362256,115.61,115.6,0.06157078]
[1744350113433,39.51362256,115.61,115.55,11.30192256]
[1744350113634,6.97362256,115.59,115.56,9.04843621]
[1744350113938,39.51362256,115.61,115.56,16.02205877]
[1744350114136,6.97362256,115.59,115.56,9.04843621]
[1744350114330,6.97362256,115.57,115.56,9.04843621]
[1744350114528,6.97362256,115.58,115.56,0.06423281]
[1744350115443,8.6595,115.57,115.56,0.06423281]
[1744350122357,39.53362256,115.57,115.51,9.07782256]
[1744350122652,6.97362256,115.55,115.5,6.97362256]
[1744350123059,8.6621,115.54,115.51,8.6636]
[1744350123462,8.72273772,115.54,115.51,8.7277801]
[1744350123960,41.28273772,115.54,115.51,8.7277801]
[1744350125264,41.28273772,115.54,115.51,15.70140266]
[1744350125564,32.62063772,115.54,115.52,6.97362256]
[1744350126264,32.62063772,115.54,115.53,8.6625]
[1744350127767,0.06063772,115.54,115.53,15.63612256]
[1744350129363,39.53362256,115.6,115.56,8.6598]
[1744350129864,8.6584,115.59,115.56,8.6598]
[1744350130465,8.72281673,115.59,115.56,8.7262449]
[1744350132259,0.06441673,115.59,115.56,0.0664449]
[1744350132454,0.06441673,115.59,115.56,7.04006746]
[1744350133266,0.06441673,115.59,115.57,8.6591]
[1744350134557,8.72241673,115.59,115.56,15.69996746]
[1744350136568,0.06441673,115.59,115.57,8.6594]
[1744350136772,0.06441673,115.59,115.57,6.97362256]
[1744350136968,0.06441673,115.59,115.58,6.97362256]
[1744350137573,41.2154,115.63,115.6,8.6569]
[1744350137867,41.2154,115.63,115.6,15.63052256]
[1744350138661,41.27814037,115.63,115.6,15.69110818]
[1744350138975,32.62274037,115.63,115.6,7.03420818]
[1744350139571,32.62274037,115.63,115.61,6.97362256]
[1744350139775,32.62274037,115.63,115.62,6.97362256]
[1744350139965,0.06274037,115.63,115.62,6.97362256]
[1744350141268,0.06274037,115.63,115.62,15.62932256]
[1744350142974,0.06274037,115.63,115.6,7.03420818]
[1744350143176,32.60274037,115.63,115.6,0.06058562]
[1744350143375,39.57636293,115.63,115.6,0.06058562]
[1744350143770,8.6559,115.62,115.6,0.06058562]
[1744350146168,41.25804037,115.63,115.6,8.71768562]
[1744350146779,32.60274037,115.63,115.61,8.6563]
[1744350147173,32.60274037,115.63,115.6,0.06058562]
[1744350147373,41.25774037,115.63,115.6,8.71718562]
[1744350147877,32.60274037,115.63,115.61,9.03598535]
[1744350148179,32.60274037,115.63,115.6,0.06058562]
[1744350148480,8.6561,115.62,115.6,0.06058562]
[1744350150378,8.6561,115.62,115.6,8.71778562]
[1744350150575,41.25794037,115.63,115.6,8.71778562]
[1744350152188,32.60274037,115.63,115.61,8.6563]
[1744350152375,32.60274037,115.63,115.6,0.06058562]
[1744350152981,32.60274037,115.63,115.61,9.03758252]
[1744350153286,32.60274037,115.63,115.62,9.03758252]
[1744350153897,0.06274037,115.63,115.62,9.03758252]
[1744350154074,13.08974498,115.68,115.62,17.67748905]
[1744350154075,2.1879,115.68,115.62,17.67748905]
[1744350154273,2.1879,115.68,115.62,9.03758252]
[1744350154474,2.2969,115.69,115.63,17.67195904]
[1744350154679,2.2969,115.69,115.63,9.03758252]
[1744350154983,2.2969,115.69,115.65,8.6534]
[1744350154984,8.6516,115.68,115.65,8.6534]
[1744350155186,2.2969,115.69,115.63,10.90184498]
[1744350155384,0.06383239,115.68,115.65,0.06570511]
[1744350155582,8.6522,115.67,115.65,0.06570511]
[1744350155879,32.60383239,115.68,115.65,0.06570511]
[1744350156283,48.00877737,115.68,115.65,0.06570511]
[1744350156881,8.6527,115.66,115.65,0.06570511]
[1744350163791,8.6545,115.64,115.61,8.6561]
[1744350163996,32.52,115.64,115.58,4.4439]
[1744350164187,32.52,115.64,115.6,8.6568]
[1744350164687,8.6554,115.63,115.6,8.6568]
[1744350164891,0.05988471,115.63,115.61,0.05710923]
[1744350165392,8.6557,115.62,115.61,0.05710923]
[1744350165894,8.71518471,115.63,115.61,0.05710923]
[1744350169197,8.6557,115.62,115.61,0.05710923]
[1744350169894,8.71518471,115.63,115.61,0.05710923]
[1744350171693,8.6557,115.62,115.61,0.05710923]
[1744350172896,8.71528471,115.63,115.61,0.05710923]
[1744350177502,8.6557,115.62,115.61,0.05710923]
[1744350179499,0.05988471,115.63,115.61,0.05710923]
[1744350180001,6.97753693,115.62,115.58,8.6586]
[1744350180306,39.49753693,115.61,115.56,41.77663693]
[1744350180498,8.658,115.59,115.57,12.66650376]
[1744350180699,32.52,115.61,115.55,6.97753693]
[1744350180899,6.97753693,115.6,115.58,9.0731226]
[1744350181101,8.6577,115.6,115.58,9.0731226]
[1744350181302,8.71747805,115.6,115.58,9.13503896]
[1744350181598,8.71747805,115.6,115.58,0.06191636]
[1744350182399,0.05977805,115.6,115.58,0.06191636]
[1744350182611,0.05977805,115.6,115.58,8.72051636]
[1744350183208,8.71697805,115.6,115.58,0.06191636]
[1744350185512,0.05977805,115.6,115.58,8.72051636]
[1744350186010,8.71697805,115.6,115.58,0.06191636]
[1744350188008,8.658,115.59,115.58,0.06191636]
[1744350189205,0.05977805,115.6,115.58,0.06191636]
[1744350189516,0.05977805,115.6,115.58,7.03945329]
[1744350189810,0.05977805,115.6,115.59,6.97753693]
[1744350190415,0.05977805,115.6,115.59,24.69673729]
[1744350190613,0.05977805,115.6,115.59,17.71920036]
[1744350192007,0.05977805,115.6,115.59,24.69673729]
[1744350193213,41.1744,115.64,115.61,8.6561]
[1744350194416,41.23972216,115.64,115.61,8.72195609]
[1744350195011,32.58532216,115.64,115.62,6.97753693]
[1744350195211,0.06532216,115.64,115.63,6.97753693]
[1744350195410,0.06532216,115.64,115.63,16.02359948]
[1744350195609,32.52,115.67,115.63,16.02359948]
[1744350195910,32.52,115.7,115.66,6.97753693]
[1744350196407,41.1703,115.7,115.67,8.6519]
[1744350196815,41.23310971,115.7,115.67,8.7150261]
[1744350197711,32.58280971,115.7,115.67,0.0631261]
[1744350198215,8.6509,115.69,115.67,0.0631261]
[1744350199216,32.58280971,115.7,115.67,0.0631261]
[1744350199906,32.58280971,115.7,115.68,8.651]
[1744350200815,32.58280971,115.7,115.69,8.6505]
[1744350201019,32.58280971,115.7,115.67,0.0631261]
[1744350202314,41.23290971,115.7,115.67,8.7148261]
[1744350203506,8.6507,115.69,115.67,0.0631261]
[1744350203709,32.58280971,115.7,115.67,0.0631261]
[1744350204011,8.6511,115.69,115.67,0.0631261]
[1744350206119,8.6512,115.68,115.67,0.0631261]
[1744350206820,8.6512,115.68,115.58,2.2029]
[1744350206821,8.64,115.68,115.58,2.2029]
[1744350207007,10.8880984,115.65,115.58,2.2029]
[1744350207211,32.5,115.64,115.58,2.2029]
[1744350207410,32.5,115.64,115.59,9.02808089]
[1744350207611,10.8880984,115.63,115.59,9.02808089]
[1744350207818,10.95114971,115.63,115.6,0.0626283]
[1744350208214,10.94628445,115.63,115.6,0.0626283]
[1744350209120,8.6565,115.61,115.6,0.0626283]
[1744350209319,41.1565,115.61,115.6,0.0626283]
[1744350211521,32.5,115.61,115.6,0.0626283]
[1744350212635,41.1565,115.61,115.6,0.0626283]
[1744350214737,32.5,115.61,115.6,0.0626283]
[1744350216343,41.1565,115.61,115.6,0.0626283]
[1744350218044,32.5,115.61,115.6,0.0626283]
[1744350218541,32.5,115.61,115.6,8.7198283]
[1744350218733,0.05818605,115.63,115.6,0.0626283]
[1744350220745,8.6565,115.61,115.6,0.0626283]
[1744350220938,41.1565,115.61,115.6,0.0626283]
[1744350225043,32.5,115.61,115.6,0.0626283]
[1744350226150,41.1565,115.61,115.6,0.0626283]
[1744350227953,32.5,115.61,115.6,0.0626283]
[1744350229246,32.5,115.61,115.6,8.7198283]
[1744350229454,0.05818605,115.63,115.6,0.0626283]
[1744350229945,0.05818605,115.63,115.62,8.6557]
[1744350230156,717.58,115.67,115.6,15.3755267]
[1744350230340,717.58,115.67,115.61,8.63107943]
[1744350230547,8.653,115.66,115.63,8.6546]
[1744350230941,717.58,115.67,115.6,4.4248]
[1744350231248,8.654,115.65,115.62,8.6553]
[1744350231445,8.71332155,115.65,115.62,8.72076958]
[1744350232254,8.6544,115.64,115.62,0.06546958]
[1744350232648,41.1544,115.64,115.62,0.06546958]
[1744350234656,32.5,115.64,115.62,8.72116958]
[1744350235957,0.05932155,115.65,115.62,0.06546958]
[1744350236959,0.05932155,115.65,115.64,8.6542]
[1744350242654,0.05932155,115.65,115.63,8.6546]
[1744350242963,0.05932155,115.65,115.62,0.06546958]
[1744350243464,0.05932155,115.65,115.64,8.6542]
[1744350243965,8.6509,115.69,115.66,8.6524]
[1744350244262,8.6509,115.69,115.64,9.02852614]
[1744350244460,32.5,115.7,115.64,13.49352614]
[1744350244661,8.6506,115.69,115.66,8.6524]
[1744350245265,0.06500138,115.69,115.67,8.6517]
[1744350245863,8.71550138,115.69,115.66,8.71562092]
[1744350246453,0.06500138,115.69,115.66,0.06322092]
[1744350247365,8.6516,115.68,115.66,0.06322092]
[1744350247666,0.06500138,115.69,115.66,0.06322092]
[1744350248162,8.652,115.67,115.66,0.06322092]
[1744350248355,41.152,115.67,115.66,0.06322092]
[1744350253267,48.12468181,115.67,115.66,0.06322092]
[1744350254365,48.12468181,115.67,115.66,2.092e-05]
[1744350254570,39.47268181,115.67,115.6,9.21398181]
[1744350254770,6.97268181,115.64,115.58,39.45268181]
[1744350255070,39.45268181,115.63,115.61,9.04783807]
[1744350255268,32.48,115.62,115.61,9.04783807]
[1744350255462,32.48,115.63,115.61,9.04783807]
[1744350255658,32.54570728,115.63,115.6,0.05680422]
[1744350255969,8.6562,115.62,115.6,0.05680422]
[1744350256171,32.54570728,115.63,115.6,0.05680422]
[1744350257367,8.6565,115.61,115.6,0.05680422]
[1744350257871,8.6565,115.61,115.6,9.1084841]
[1744350260179,8.6565,115.61,115.6,17.77086145]
[1744350260668,8.6565,115.61,115.6,9.1084841]
[1744350261774,8.6565,115.61,115.6,0.05680422]
[1744350265881,32.54570728,115.63,115.6,0.05680422]
[1744350266879,8.6561,115.62,115.6,0.05680422]
[1744350271084,8.6565,115.61,115.6,0.05680422]
[1744350271981,8.6565,115.61,115.6,9.11652569]
[1744350275083,19.55966584,115.61,115.6,9.11652569]
[1744350275587,8.6587,115.59,115.55,2.2985]
[1744350275788,41.1587,115.59,115.56,8.67077702]
[1744350275983,41.1587,115.59,115.55,10.9588]
[1744350276182,41.1587,115.59,115.56,8.67155859]
[1744350276482,32.5,115.59,115.57,9.06306358]
[1744350276684,32.56053728,115.59,115.57,9.06306358]
[1744350276882,32.56053728,115.59,115.58,8.6587]
[1744350277186,32.56053728,115.59,115.58,17.72176358]
[1744350277889,32.56053728,115.59,115.58,9.06306358]
[1744350278586,48.19823735,115.59,115.58,9.06306358]
[1744350279085,8.6588,115.58,115.56,0.06121492]
[1744350279288,32.56053728,115.59,115.56,7.04091499]
[1744350279490,32.56053728,115.59,115.57,6.97970007]
[1744350279784,0.06053728,115.59,115.58,8.6587]
[1744350283085,0.06053728,115.59,115.58,17.7075578]
[1744350291193,0.06053728,115.59,115.58,26.37532896]
[1744350291590,32.5,115.62,115.6,8.6565]
[1744350292792,32.56458004,115.62,115.61,8.6565]
[1744350294493,32.56458004,115.62,115.61,17.72283771]
[1744350294698,0.06458004,115.62,115.61,26.39336518]
[1744350296501,0.06458004,115.62,115.61,30.38018305]
[1744350296697,0.06458004,115.62,115.61,26.39336518]
[1744350299402,0.06458004,115.62,115.61,30.38422079]
[1744350300604,717.6,115.66,115.63,8.6548]
[1744350301102,8.6527,115.66,115.63,8.6548]
[1744350301298,32.48,115.69,115.65,6.97970007]
[1744350301502,32.48,115.69,115.66,8.67220297]
[1744350301694,8.71193487,115.68,115.66,0.05703432]
[1744350302300,8.71193487,115.68,115.67,9.06633771]
[1744350303103,15.69163494,115.68,115.67,9.06633771]
[1744350303403,8.652,115.67,115.66,0.05703432]
[1744350304501,15.63170007,115.67,115.66,0.05703432]
[1744350309907,8.654,115.65,115.62,8.6553]
[1744350310209,41.134,115.65,115.63,9.05392829]
[1744350310611,32.48,115.65,115.63,9.05392829]
[1744350310806,32.48,115.65,115.62,15.63500007]
[1744350311004,32.48,115.65,115.62,8.6553]
[1744350311208,32.54348624,115.65,115.62,8.71903323]
[1744350311707,41.19748624,115.65,115.62,8.71903323]
[1744350313210,32.54348624,115.65,115.63,8.6549]
[1744350315314,32.54348624,115.65,115.64,8.6542]
[1744350315712,0.06348624,115.65,115.64,8.6542]
[1744350316109,0.06348624,115.65,115.64,17.70487709]
[1744350316910,32.48,115.68,115.64,24.68457716]
[1744350317116,32.48,115.68,115.65,15.63531574]
[1744350317412,32.48,115.68,115.66,9.05067709]
[1744350317807,15.63190007,115.67,115.66,9.05067709]
[1744350318011,15.63190007,115.67,115.62,6.97970007]
[1744350318204,15.63190007,115.67,115.65,0.05687979]
[1744350318409,0.05855456,115.66,115.65,0.05687979]
[1744350319413,8.71125456,115.66,115.65,0.05687979]
[1744350320109,0.05855456,115.66,115.65,0.05687979]
[1744350321225,8.71125456,115.66,115.65,0.05687979]
[1744350321426,15.69095463,115.66,115.65,0.05687979]
[1744350321925,8.6544,115.64,115.61,8.6561]
[1744350322126,41.1144,115.64,115.61,8.6561]
[1744350322322,32.46,115.64,115.6,9.10540007]
[1744350322526,32.46,115.64,115.62,9.05779827]
[1744350322728,32.46,115.64,115.62,17.71299827]
[1744350322926,32.523249,115.64,115.62,16.0998532]
[1744350323227,0.063249,115.64,115.63,9.05779827]
[1744350323430,0.063249,115.64,115.63,17.71279827]
[1744350326830,0.063249,115.64,115.63,9.05779827]
[1744350327834,0.063249,115.64,115.63,26.3780814]
[1744350330234,0.063249,115.64,115.63,37.33945965]
[1744350330734,32.46,115.67,115.65,8.6532]
[1744350331734,32.52580189,115.67,115.65,8.71565703]
[1744350333437,41.17780189,115.67,115.65,0.06245703]
[1744350334335,32.52580189,115.67,115.65,8.71585703]
[1744350335839,32.52580189,115.67,115.66,8.6527]
[1744350336545,32.52580189,115.67,115.66,17.72571773]
[1744350337042,32.52580189,115.67,115.66,24.7054178]
[1744350337241,32.52580189,115.67,115.66,9.07301773]
[1744350337546,0.06580189,115.67,115.66,9.07301773]
[1744350338343,8.71780189,115.67,115.66,9.07301773]
[1744350340739,15.69750196,115.67,115.66,9.07301773]
[1744350341641,8.6527,115.66,115.65,0.06245703]
[1744350341946,8.6527,115.66,115.65,9.14581932]
[1744350343850,15.69780196,115.67,115.65,9.14581932]
[1744350344255,8.71810189,115.67,115.65,0.06245703]
[1744350344749,8.71810189,115.67,115.66,9.08546367]
[1744350349152,0.06580189,115.67,115.66,17.77652198]
[1744350349751,0.06580189,115.67,115.66,26.42922198]
[1744350350152,0.06580189,115.67,115.66,17.77652198]
[1744350350650,0.06580189,115.67,115.66,9.08546367]
[1744350351051,8.71780189,115.67,115.66,9.08546367]
[1744350352455,0.06580189,115.67,115.66,9.08546367]
[1744350356060,0.06580189,115.67,115.66,17.77957886]
[1744350357860,0.06580189,115.67,115.66,26.43227886]
[1744350358661,0.06580189,115.67,115.66,26.43309725]
[1744350359157,0.06580189,115.67,115.66,17.78039725]
[1744350360361,0.06580189,115.67,115.66,21.77626719]
[1744350360555,0.06580189,115.67,115.66,17.78039725]
[1744350360855,8.71780189,115.67,115.66,17.78039725]
[1744350361861,0.06580189,115.67,115.66,17.78039725]
[1744350362861,0.06580189,115.67,115.66,26.43309725]
[1744350363756,0.06580189,115.67,115.66,17.73816367]
[1744350364162,0.06580189,115.67,115.66,26.43415056]
[1744350364360,96.3372264,115.75,115.66,24.76115063]
[1744350364565,96.3372264,115.75,115.72,6.97970007]
[1744350364856,96.3372264,115.75,115.73,15.65915504]
[1744350365053,39.29152948,115.75,115.74,15.62640007]
[1744350365250,39.29152948,115.75,115.74,15.65915504]
[1744350365558,39.29152948,115.75,115.74,9.08546367]
[1744350365762,39.29152948,115.75,115.74,17.74342731]
[1744350366262,0.0617618,115.76,115.74,13.56122291]
[1744350366462,0.0617618,115.76,115.73,0.05858084]
[1744350366666,8.7070618,115.76,115.73,8.70568084]
[1744350367057,7.04146187,115.76,115.73,0.05858084]
[1744350367861,8.6465,115.75,115.73,0.05858084]
[1744350369164,15.68706187,115.76,115.73,0.05858084]
[1744350369363,8.7073618,115.76,115.73,8.70588084]
[1744350370065,8.6463,115.75,115.73,0.05858084]
[1744350370263,0.0617618,115.76,115.73,0.05858084]
[1744350370764,0.0617618,115.76,115.73,8.70558084]
[1744350371263,0.0617618,115.76,115.73,0.05858084]
[1744350371465,32.42,115.75,115.73,0.05858084]
[1744350371664,39.39970007,115.75,115.73,0.05858084]
[1744350371867,32.42,115.75,115.73,0.05858084]
[1744350372167,41.0663,115.75,115.73,0.05858084]
[1744350372367,32.42,115.75,115.73,0.05858084]
[1744350372665,41.0661,115.75,115.73,0.05858084]
[1744350372867,39.39970007,115.75,115.73,0.05858084]
[1744350373069,6.97970007,115.74,115.73,0.05858084]
[1744350373364,8.6467,115.74,115.73,0.05858084]
[1744350374467,41.0663,115.75,115.73,0.05858084]
[1744350374967,8.6467,115.74,115.73,0.05858084]
[1744350376566,32.42,115.75,115.73,0.05858084]
[1744350376974,8.6467,115.74,115.73,0.05858084]
[1744350379765,8.6467,115.74,115.66,65.80255436]
[1744350379766,15.61970007,115.74,115.66,1.50395436]
[1744350380063,6.97970007,115.68,115.63,6.97970007]
[1744350380271,32.42,115.69,115.66,6.97970007]
[1744350380465,43.87690007,115.73,115.68,6.97970007]
[1744350380665,34.6102,115.73,115.68,6.97970007]
[1744350380866,8.71027659,115.72,115.69,0.05977722]
[1744350381063,0.06167659,115.72,115.7,6.97970007]
[1744350381258,0.06167659,115.72,115.7,15.62900007]
[1744350382573,8.70997659,115.72,115.7,6.97970007]
[1744350384073,8.70997659,115.72,115.69,0.05977722]
[1744350384274,8.6491,115.71,115.69,0.05977722]
[1744350384971,8.71027659,115.72,115.69,0.05977722]
[1744350385975,8.71027659,115.72,115.69,8.71027722]
[1744350386469,7.04137666,115.72,115.69,0.05977722]
[1744350386771,6.97970007,115.7,115.69,0.05977722]
[1744350386963,48.04940007,115.7,115.69,0.05977722]
[1744350387164,6.97970007,115.67,115.63,2.1893]
[1744350387358,6.97970007,115.65,115.6,139.19754572]
[1744350387564,8.6557,115.63,115.6,132.21784565]
[1744350387864,6.97970007,115.62,115.6,132.21784565]
[1744350388265,8.6562,115.62,115.6,0.05807334]
[1744350388666,15.63590007,115.62,115.6,0.05807334]
[1744350388873,8.6565,115.61,115.6,0.05807334]
[1744350389877,15.63570007,115.62,115.6,0.05807334]
[1744350390875,8.656,115.62,115.6,0.05807334]
[1744350392783,8.6565,115.61,115.6,0.05807334]
[1744350395669,15.63620007,115.61,115.6,0.05807334]
[1744350396872,8.6565,115.61,115.6,0.05807334]
[1744350397474,8.6561,115.62,115.6,0.05807334]
[1744350399183,48.1113252,115.63,115.6,0.05807334]
[1744350399381,32.47632513,115.63,115.6,0.05807334]
[1744350399682,32.47632513,115.63,115.61,8.6562]
[1744350399880,32.47632513,115.63,115.61,15.63590007]
[1744350400077,32.47632513,115.63,115.61,6.97970007]
[1744350400271,0.05632513,115.63,115.61,6.97970007]
[1744350400471,0.05632513,115.63,115.62,6.97970007]
[1744350400978,32.46,115.66,115.62,6.97970007]
[1744350401175,32.46,115.66,115.63,6.97970007]
[1744350401482,39.43970007,115.66,115.6,6.5533]
[1744350401676,39.43970007,115.66,115.61,6.97970007]
[1744350402087,8.71624395,115.65,115.62,8.71992572]
[1744350403080,0.06214395,115.65,115.62,8.71992572]
[1744350403476,0.06214395,115.65,115.63,8.6548]
[1744350404077,8.71564395,115.65,115.62,8.72012572]
[1744350404583,0.06214395,115.65,115.62,0.06472572]
[1744350405083,8.6548,115.64,115.62,0.06472572]
[1744350405279,32.98,115.63,115.62,0.06472572]
[1744350409083,32.98,115.63,115.62,8.72042572]
[1744350409585,32.98,115.63,115.62,0.06472572]
[1744350410187,32.98,115.63,115.62,8.72042572]
[1744350411187,8.6543,115.64,115.62,8.72042572]
[1744350411388,8.71584395,115.65,115.62,8.72042572]
[1744350412491,8.71584395,115.65,115.62,0.06472572]
[1744350415293,8.71584395,115.65,115.62,8.72022572]
[1744350415892,8.71584395,115.65,115.62,0.06472572]
[1744350418794,8.71584395,115.65,115.62,8.72042572]
[1744350419496,0.06214395,115.65,115.62,0.06472572]
[1744350419698,0.06214395,115.65,115.63,15.3345204]
[1744350419902,0.06214395,115.65,115.63,24.30235277]
[1744350420098,0.06214395,115.65,115.64,8.6542]
[1744350422201,32.98,115.69,115.67,8.6518]
[1744350423299,33.04097831,115.69,115.67,8.70854909]
[1744350423794,33.04097831,115.69,115.67,0.05674909]
[1744350424400,8.6512,115.68,115.67,0.05674909]
[1744350425296,15.62435841,115.68,115.67,0.05674909]
[1744350426102,41.69187831,115.69,115.67,0.05674909]
[1744350426303,48.66503672,115.69,115.67,0.05674909]
[1744350426800,41.69187831,115.69,115.67,0.05674909]
[1744350427004,15.62435841,115.68,115.67,0.05674909]
[1744350427403,8.6512,115.68,115.67,0.05674909]
[1744350427907,8.6534,115.66,115.62,8.6554]
[1744350428207,32.98,115.65,115.62,8.6554]
[1744350428399,32.98,115.64,115.6,4.4552]
[1744350428595,41.6344,115.64,115.61,13.37960534]
[1744350428799,41.6344,115.64,115.61,8.91816567]
[1744350429106,8.6552,115.63,115.61,8.97426522]
[1744350429494,8.6552,115.63,115.61,0.05609955]
[1744350430604,33.04248543,115.64,115.61,0.05609955]
[1744350430907,33.04248543,115.64,115.61,8.71199955]
[1744350431306,41.69708543,115.64,115.61,8.71199955]
[1744350434411,33.04248543,115.64,115.61,8.71199955]
[1744350434608,33.04248543,115.64,115.61,0.05609955]
[1744350435011,41.69728543,115.64,115.61,0.05609955]
[1744350435311,41.69728543,115.64,115.61,8.71249955]
[1744350435513,33.04248543,115.64,115.61,8.71249955]
[1744350436313,33.04248543,115.64,115.62,4.47152228]
[1744350436513,33.04248543,115.64,115.61,8.71249955]
[1744350436714,41.69688543,115.64,115.61,8.71249955]
[1744350436912,41.69688543,115.64,115.61,0.05609955]
[1744350437113,41.69688543,115.64,115.62,4.4718213]
[1744350437409,41.69688543,115.64,115.62,8.93953625]
[1744350437614,41.69688543,115.64,115.61,0.05609955]
[1744350437820,41.69688543,115.64,115.61,8.71239955]
[1744350439612,33.04248543,115.64,115.61,0.05609955]
[1744350440013,8.6557,115.62,115.61,0.05609955]
[1744350441525,8.6574,115.6,115.55,13.14286837]
[1744350441715,41.4574,115.6,115.56,13.14125493]
[1744350441914,41.4574,115.6,115.57,22.09288286]
[1744350442210,41.4574,115.6,115.58,4.47777539]
[1744350442416,41.4574,115.6,115.58,8.95162793]
[1744350442611,8.658,115.59,115.58,9.01305425]
[1744350442818,43.7606668,115.6,115.54,47.93602529]
[1744350443121,43.69456837,115.6,115.55,4.47961993]
[1744350443322,43.69456837,115.6,115.54,56.59742529]
[1744350443515,43.69456837,115.6,115.55,4.47892573]
[1744350443716,8.6599,115.57,115.54,47.93602529]
[1744350443917,32.8,115.56,115.54,47.99502357]